bitfinex/quotes_ETHUSD_20220113
["timestamp","ask_amount","ask_price","bid_price","bid_amount"]
[1642086136054,0.00170527,3380.2,3380.1,7.85954284]
[1642086136255,0.00170527,3380.2,3380.1,7.48981284]
[1642086136553,0.00170527,3380.2,3380.1,7.79395751]
[1642086136757,0.00170527,3380.2,3380.1,7.755]
[1642086136996,0.00170527,3380.2,3380.1,7.79355729]
[1642086137400,0.00170527,3380.2,3380.1,10.63818221]
[1642086137603,5.27e-06,3380.2,3380.1,10.33818221]
[1642086137802,0.00094,3380.4,3380.2,0.00384554]
[1642086137999,0.1095,3381.4,3380.4,6.8]
[1642086138200,0.1095,3381.4,3380.7,0.7393]
[1642086138401,0.00625265,3381.3,3380.7,0.7393]
[1642086138600,0.00625265,3381.3,3380.9,1.33390803]
[1642086138902,0.00568423,3381.2,3380.9,1.97308191]
[1642086139099,0.00568423,3381.2,3381.0,0.03063475]
[1642086139301,0.00511581,3381.1,3381.0,0.03063475]
[1642086139900,0.00511581,3381.1,3381.0,0.76998475]
[1642086140200,0.1095,3381.4,3381.0,9.90503244]
[1642086140400,0.1095,3381.4,3381.1,1.47844]
[1642086140600,0.1095,3381.4,3381.3,6.8]
[1642086140601,0.0001,3381.4,3381.3,6.8]
[1642086140856,0.0001,3381.4,3381.3,9.09399002]
[1642086141259,0.0001,3381.4,3381.3,2.29399002]
[1642086141856,0.0001,3381.4,3381.3,0.03900028]
[1642086142061,0.0001,3381.4,3381.3,7.64092753]
[1642086142661,0.0001,3381.4,3381.3,2.19092753]
[1642086142857,0.0001,3381.4,3381.2,0.6]
[1642086143059,0.0001,3381.4,3381.3,7.40727602]
[1642086143258,0.0001,3381.4,3381.3,2.15727602]
[1642086143459,0.0001,3381.4,3381.3,2.49362704]
[1642086144057,0.0001,3381.4,3381.3,0.33635102]
[1642086144263,0.0001,3381.4,3381.3,0.3]
[1642086144495,0.0001,3381.4,3381.0,2.61788]
[1642086144700,0.0001,3381.4,3381.1,3.05855635]
[1642086144899,0.0001,3381.4,3381.1,0.77488749]
[1642086145398,0.0001,3381.4,3381.1,0.74047684]
[1642086145799,0.0001,3381.4,3381.2,0.3]
[1642086146999,0.0001,3381.4,3381.3,7.92716768]
[1642086147205,0.0001,3381.4,3381.3,5.75]
[1642086147404,0.0001,3381.4,3381.3,8.22480963]
[1642086148003,0.0001,3381.4,3381.2,0.3]
[1642086148254,0.0001,3381.4,3381.1,0.00113684]
[1642086148451,1.15528479,3381.3,3381.1,0.00113684]
[1642086149049,1.19219037,3381.2,3380.6,1.97943896]
[1642086149250,1.19219037,3381.2,3380.6,1.97546]
[1642086149451,1.19219037,3381.2,3380.7,0.00341054]
[1642086150452,1.15528479,3381.3,3380.7,0.00341054]
[1642086153505,1.15528479,3381.3,3380.8,1.203255]
[1642086153707,1.15528479,3381.3,3380.7,0.00341054]
[1642086153906,1.15528479,3381.3,3380.9,0.00227369]
[1642086154106,1.15528479,3381.3,3380.7,0.00341054]
[1642086154305,0.0001,3381.4,3380.7,0.00341054]
[1642086154507,0.0001,3381.4,3380.7,3.2290718]
[1642086154707,0.0001,3381.4,3380.7,2.9290718]
[1642086154905,0.0001,3381.4,3380.8,0.00284211]
[1642086155867,0.0001,3381.4,3381.0,0.73936]
[1642086156063,0.0001,3381.4,3381.1,2.76969872]
[1642086156263,0.0001,3381.4,3381.1,0.30113684]
[1642086156463,0.0001,3381.4,3381.1,2.47198581]
[1642086156667,0.0001,3381.4,3381.1,2.46621703]
[1642086156865,0.0001,3381.4,3381.1,2.16621703]
[1642086157263,0.0001,3381.4,3381.1,2.90550703]
[1642086157866,0.0001,3381.4,3381.2,2.54343483]
[1642086158171,0.0001,3381.4,3381.3,11.09513358]
[1642086158766,0.0001,3381.4,3381.3,11.39513358]
[1642086158966,0.0001,3381.4,3381.3,11.69513358]
[1642086159601,0.0001,3382.1,3381.6,0.73916]
[1642086159799,0.0001,3382.1,3381.8,0.36956]
[1642086160002,0.0001,3382.1,3381.8,0.70474785]
[1642086160604,0.0001,3382.1,3381.8,1.44640685]
[1642086160803,0.0001,3382.1,3381.8,1.40863]
[1642086161007,0.0001,3382.1,3381.9,0.73905]
[1642086161206,0.0001,3382.1,3381.9,1.9747]
[1642086164050,0.0001,3382.1,3381.9,2.2747]
[1642086164651,0.0001,3382.1,3381.9,1.9747]
[1642086166856,5.12535266,3382.5,3381.9,1.9747]
[1642086167099,5.12535266,3382.5,3382.0,0.00227369]
[1642086168704,1.1557385,3382.6,3382.0,0.00227369]
[1642086169303,0.73924,3382.9,3382.0,0.00227369]
[1642086169505,0.27639993,3383.3,3382.2,0.00958828]
[1642086169705,0.00113685,3382.6,3382.2,0.73912]
[1642086172757,0.02431953,3382.5,3382.2,0.73912]
[1642086173160,0.00113685,3382.6,3382.2,0.73912]
[1642086174606,0.00113685,3382.6,3382.2,1.03912]
[1642086174811,0.00113685,3382.6,3382.3,1.1086]
[1642086175010,0.00113685,3382.6,3382.4,0.3]
[1642086175418,0.00113685,3382.6,3382.4,0.6]
[1642086175615,3.7277,3383.6,3382.6,1.49886315]
[1642086175816,2.2848057,3383.9,3382.6,1.49886315]
[1642086175817,2.2848057,3383.9,3383.0,0.73894]
[1642086176014,0.00511581,3383.5,3383.0,0.73894]
[1642086176515,0.00454739,3383.4,3382.8,0.3]
[1642086176915,0.00397896,3383.3,3382.7,1.40847]
[1642086177114,0.00397896,3383.3,3382.7,0.66949]
[1642086177315,0.00341054,3383.2,3382.7,2.61644]
[1642086177515,0.00341054,3383.2,3383.1,1.13812975]
[1642086177716,0.4795045,3384.0,3383.1,1.13812975]
[1642086177915,3.97621205,3384.1,3383.2,0.73892]
[1642086178116,1.34016307,3383.9,3383.2,0.73892]
[1642086178554,0.00682108,3383.8,3383.2,0.73892]
[1642086179051,0.00625266,3383.7,3383.2,0.73892]
[1642086179451,0.00568423,3383.6,3383.2,0.73892]
[1642086179854,0.00511581,3383.5,3383.2,0.73892]
[1642086180055,0.00511581,3383.5,3383.1,0.3]
[1642086180261,0.00454739,3383.4,3382.9,1.47777]
[1642086180457,0.02747007,3383.3,3382.9,1.47777]
[1642086180655,0.02747007,3383.3,3382.6,2.97675315]
[1642086180656,0.00397896,3383.3,3382.7,1.94695]
[1642086180858,0.00341054,3383.2,3382.6,1.49886315]
[1642086181257,0.00284212,3383.1,3382.6,1.49886315]
[1642086181457,1.4785558,3382.9,3382.6,1.49886315]
[1642086181657,0.02122908,3382.8,3382.6,1.49886315]
[1642086181855,0.02122908,3382.8,3382.0,0.00227369]
[1642086181856,2.57744742,3382.8,3382.0,0.00227369]
[1642086182113,2.55621834,3382.8,3382.0,0.00227369]
[1642086182412,3.29553834,3382.8,3382.0,0.00341054]
[1642086182616,0.73936,3382.7,3382.0,0.00341054]
[1642086182814,0.73936,3382.7,3381.8,1.36335788]
[1642086182815,0.03721826,3382.6,3381.8,1.36335788]
[1642086183114,1.27041684,3382.4,3381.9,0.00397896]
[1642086183717,1.27041684,3382.4,3381.4,0.00682108]
[1642086184315,0.73934,3382.3,3381.4,0.00682108]
[1642086184517,3.32767928,3382.3,3381.4,0.00682108]
[1642086184720,4.11369608,3382.3,3381.4,0.00682108]
[1642086184919,1.35530385,3381.5,3381.4,0.00682108]
[1642086185419,1.35530385,3381.5,3380.6,0.01136847]
[1642086185620,1.35530385,3381.5,3381.0,1.227147]
[1642086186082,1.35530385,3381.5,3381.1,0.00852635]
[1642086186278,0.739523,3381.6,3381.1,0.00852635]
[1642086186478,1.0,3382.2,3381.1,0.00852635]
[1642086187080,0.426,3382.4,3381.1,0.00852635]
[1642086187081,0.4795045,3382.3,3381.1,0.00852635]
[1642086187280,1.2189145,3382.3,3381.1,0.00852635]
[1642086187582,0.739523,3381.6,3381.1,0.00852635]
[1642086187780,1.44114104,3381.5,3381.1,0.00852635]
[1642086188380,1.44114104,3381.5,3380.5,0.01193689]
[1642086188784,3.73973255,3381.4,3380.5,0.01193689]
[1642086189180,3.73973255,3381.4,3380.0,1.51060378]
[1642086189181,1.45039002,3381.0,3380.1,1.51259039]
[1642086189381,0.426,3381.0,3380.1,1.51259039]
[1642086189606,1.40270898,3380.9,3380.2,0.01364216]
[1642086189806,0.73978,3380.6,3380.2,0.01364216]
[1642086190210,1.4795299,3380.6,3380.2,0.01364216]
[1642086190916,0.01933815,3380.5,3380.2,0.01364216]
[1642086191119,1.4795299,3380.6,3380.2,0.01364216]
[1642086192117,1.4794341,3380.4,3380.2,0.01364216]
[1642086192817,0.7397141,3380.4,3380.2,0.01364216]
[1642086193263,1.4794281,3380.7,3380.2,0.01364216]
[1642086193461,1.40270898,3380.9,3380.2,0.01364216]
[1642086193462,0.34564345,3380.6,3380.2,0.01364216]
[1642086194064,3.39001515,3380.6,3380.2,0.01364216]
[1642086194262,0.02253701,3380.5,3379.7,0.01648428]
[1642086194463,0.7398407,3380.0,3379.2,0.0193264]
[1642086194663,1.4796814,3380.1,3379.2,0.0193264]
[1642086194863,1.15973972,3380.0,3379.2,0.0193264]
[1642086195269,1.15973972,3380.0,3379.4,1.35848825]
[1642086195768,1.15973972,3380.0,3379.5,0.01762113]
[1642086196169,0.7398253,3379.7,3379.5,0.01762113]
[1642086197211,0.76217502,3379.7,3379.5,0.01762113]
[1642086197416,0.7398253,3379.7,3379.0,0.02046325]
[1642086197613,0.7399185,3379.3,3378.8,0.32160009]
[1642086197812,0.7399185,3379.3,3378.9,0.02103167]
[1642086198913,0.7398623,3379.5,3378.9,0.02103167]
[1642086199314,0.7398623,3379.5,3378.8,0.02160009]
[1642086200116,0.7398623,3379.5,3378.8,0.32160009]
[1642086200316,1.89954972,3380.0,3378.8,0.32160009]
[1642086200517,0.7398056,3379.9,3378.9,0.02103167]
[1642086200757,1.9055873,3380.2,3378.9,0.02103167]
[1642086200758,1.4795873,3380.2,3378.9,0.02103167]
[1642086200959,3.6555,3380.3,3378.9,0.02103167]
[1642086201159,3.6555,3380.3,3379.8,1.13272742]
[1642086201362,5.9172,3380.0,3378.9,1.16303167]
[1642086201660,6.65698,3380.0,3379.0,0.02046325]
[1642086202062,5.9172,3380.0,3379.0,0.02046325]
[1642086203063,5.9172,3380.0,3379.9,1.5637366]
[1642086203563,5.9172,3380.0,3379.9,1.07923367]
[1642086204543,5.9172,3380.0,3379.9,0.01534743]
[1642086204944,5.9172,3380.0,3379.1,0.01989482]
[1642086205146,5.9172,3380.0,3379.2,0.426]
[1642086205446,5.9172,3380.0,3379.3,2.27448806]
[1642086205645,5.9172,3380.0,3379.3,0.74475797]
[1642086205844,5.9172,3380.0,3379.4,0.01818955]
[1642086206044,5.9172,3380.0,3379.5,1.4681178]
[1642086206449,5.9172,3380.0,3379.6,0.3170527]
[1642086206750,5.9172,3380.0,3379.7,0.01648428]
[1642086206946,5.9172,3380.0,3379.7,0.44248428]
[1642086207246,5.9172,3380.0,3379.8,2.39514005]
[1642086207544,5.9172,3380.0,3379.9,5.61534743]
[1642086207745,5.9172,3380.0,3379.9,7.89112071]
[1642086208563,5.9172,3380.0,3379.9,5.61534743]
[1642086208764,5.9172,3380.0,3379.9,0.01534743]
[1642086209163,5.9172,3380.0,3379.6,0.3]
[1642086209367,5.9172,3380.0,3379.4,0.01818955]
[1642086209863,5.9172,3380.0,3379.5,1.14829222]
[1642086210064,5.9172,3380.0,3379.6,0.3]
[1642086210263,5.9172,3380.0,3379.6,0.3170527]
[1642086210463,5.9172,3380.0,3379.7,0.01648428]
[1642086211269,0.03085981,3379.9,3379.7,0.01648428]
[1642086211563,0.01775955,3379.6,3379.0,0.02046325]
[1642086211763,0.49974111,3379.7,3379.0,0.02046325]
[1642086212016,2.02784615,3379.7,3379.0,0.02046325]
[1642086212219,3.28500629,3379.7,3378.8,0.02160009]
[1642086212418,0.02597657,3379.6,3378.8,0.02160009]
[1642086212620,0.02597657,3379.6,3378.6,0.02273694]
[1642086212621,1.50570437,3379.6,3378.6,0.02273694]
[1642086212819,0.02597657,3379.6,3378.6,0.02273694]
[1642086213018,3.03526518,3379.7,3378.5,0.02330536]
[1642086213218,0.49974111,3379.3,3378.5,0.02330536]
[1642086213619,0.74003,3379.1,3378.5,0.02330536]
[1642086213821,0.7399893,3378.9,3378.5,0.02330536]
[1642086214119,0.02203621,3378.8,3378.5,0.02330536]
[1642086214321,0.7399893,3378.9,3378.5,0.02330536]
[1642086215024,1.50245875,3378.6,3378.5,0.02330536]
[1642086215426,2.00219986,3378.6,3378.3,0.02444221]
[1642086215625,0.02321583,3378.5,3377.8,0.02728433]
[1642086215897,0.49974111,3378.6,3377.8,0.02728433]
[1642086216098,0.7400604,3378.2,3377.8,0.02728433]
[1642086218097,0.0197054,3378.1,3377.8,0.02728433]
[1642086218298,0.7400792,3378.1,3377.8,0.02728433]
[1642086219616,0.7400792,3378.1,3377.7,6.29728433]
[1642086219815,2.9604982,3378.1,3377.7,6.29728433]
[1642086220017,0.00113685,3378.0,3377.7,6.29728433]
[1642086220819,0.00113685,3378.0,3377.9,5.94760022]
[1642086221121,0.00113685,3378.0,3377.9,8.64808828]
[1642086221319,0.00113685,3378.0,3377.9,8.42360022]
[1642086221523,0.00113685,3378.0,3377.9,9.58660022]
[1642086221920,0.00113685,3378.0,3377.9,9.64467946]
[1642086222722,0.00113685,3378.0,3377.9,12.49000565]
[1642086222922,0.49974111,3379.5,3378.0,6.8]
[1642086223124,0.7398165,3379.3,3378.1,1.90561]
[1642086223363,0.00682108,3379.2,3378.2,2.43798111]
[1642086223567,0.00682108,3379.2,3378.3,0.426]
[1642086223764,0.00625266,3379.1,3378.7,1.1464799]
[1642086224164,0.00568423,3379.0,3378.8,0.3]
[1642086224466,1.479798,3379.4,3378.8,0.3]
[1642086224467,0.74501481,3378.9,3378.8,0.3]
[1642086224963,0.74501481,3378.9,3378.3,0.426]
[1642086225165,0.0227391,3378.8,3378.3,0.426]
[1642086225365,0.7399662,3378.7,3378.3,0.426]
[1642086225567,0.00397896,3378.7,3378.6,1.34435702]
[1642086225769,0.73992,3379.2,3378.0,0.426]
[1642086226170,0.00341054,3378.6,3378.0,0.426]
[1642086226569,0.00284212,3378.5,3378.1,2.11488371]
[1642086226769,0.00284212,3378.5,3378.4,6.61319167]
[1642086227034,0.00227369,3378.4,3378.3,0.426]
[1642086227239,0.00284212,3378.5,3378.3,0.426]
[1642086227440,0.00227369,3378.4,3378.3,0.426]
[1642086228838,0.00227369,3378.4,3378.2,0.3]
[1642086229038,0.00227369,3378.4,3378.0,0.3]
[1642086229338,0.7400152,3378.2,3377.8,0.426]
[1642086229738,0.7400152,3378.2,3377.8,0.376]
[1642086230338,0.7400152,3378.2,3377.9,2.54568493]
[1642086230538,1.4801352,3378.2,3378.0,0.3]
[1642086231565,1.4801352,3378.2,3377.8,2.54568493]
[1642086231765,1.4801352,3378.2,3377.7,6.37]
[1642086231964,1.4801352,3378.2,3377.7,6.27]
[1642086232170,0.74015,3378.0,3377.8,0.00113685]
[1642086232368,1.4803659,3378.0,3377.8,0.00113685]
[1642086232571,0.49974111,3377.9,3377.8,0.00113685]
[1642086232768,0.49974111,3377.9,3377.4,0.00341054]
[1642086233170,1.50010529,3377.7,3377.4,0.00341054]
[1642086234168,0.49974111,3377.6,3377.4,0.00341054]
[1642086235020,1.24008111,3377.6,3377.4,0.00341054]
[1642086235418,0.74034,3377.6,3377.4,0.00341054]
[1642086235617,0.49974111,3377.5,3377.4,0.00341054]
[1642086236517,3.19880569,3377.6,3377.4,0.00341054]
[1642086236920,3.19880569,3377.6,3377.3,0.85770967]
[1642086236921,1.23674027,3377.4,3377.3,0.85770967]
[1642086237321,0.7404097,3377.4,3377.3,0.85770967]
[1642086238559,0.7404097,3377.4,3377.3,0.35782533]
[1642086239159,1.03300306,3377.4,3377.3,0.35782533]
[1642086239558,0.7404097,3377.4,3377.3,0.35782533]
[1642086241668,0.14205874,3377.3,3376.7,6.37]
[1642086242009,0.7403621,3377.0,3376.8,0.00341054]
[1642086243813,0.7402436,3377.2,3376.8,0.00341054]
[1642086244411,0.7402436,3377.2,3376.7,0.00397896]
[1642086244615,3.7455,3377.8,3376.7,2.12491361]
[1642086244815,1.2400858,3377.5,3376.9,1.28895437]
[1642086245013,1.2400858,3377.5,3376.9,1.58895437]
[1642086245312,1.2400858,3377.5,3377.0,0.00227369]
[1642086246365,0.740249,3377.2,3377.0,0.00227369]
[1642086247372,0.740249,3377.2,3376.7,0.00397896]
[1642086248276,0.4998158,3377.5,3377.0,1.45635366]
[1642086248473,0.00170527,3377.7,3377.0,1.75635366]
[1642086248674,0.00170527,3377.7,3377.1,0.00170527]
[1642086248873,9.6277,3378.6,3377.1,0.00170527]
[1642086248874,0.00113685,3377.6,3377.1,0.00170527]
[1642086249274,0.7402,3378.2,3377.1,0.00170527]
[1642086249520,2.22988748,3378.2,3377.1,0.00170527]
[1642086249720,0.7402,3377.9,3377.1,0.00170527]
[1642086249920,0.740143,3377.8,3377.1,0.00170527]
[1642086250122,0.00227369,3377.8,3377.1,0.00170527]
[1642086250321,0.00170527,3377.7,3377.1,0.00170527]
[1642086250721,0.00113685,3377.6,3377.1,0.00170527]
[1642086251219,0.00511581,3378.3,3377.8,1.3417484]
[1642086251422,0.00511581,3378.3,3377.1,1.93386527]
[1642086251619,0.7400522,3378.1,3377.1,1.19380527]
[1642086251819,0.74018,3378.0,3377.2,0.00113685]
[1642086252019,0.74359054,3378.0,3377.2,0.00113685]
[1642086252224,0.00284212,3377.9,3377.2,0.00113685]
[1642086252629,0.7401814,3377.7,3377.2,0.00113685]
[1642086253026,0.00113685,3377.6,3377.2,0.00113685]
[1642086253275,0.00113685,3377.6,3377.1,0.00170527]
[1642086253469,0.00170527,3377.7,3376.9,0.00284212]
[1642086253870,0.74026,3377.9,3376.9,0.00284212]
[1642086253871,0.00113685,3377.6,3376.9,0.00284212]
[1642086254068,0.74139685,3377.6,3376.9,0.00284212]
[1642086254268,0.7402649,3377.5,3376.9,0.00284212]
[1642086254468,2.2207898,3377.6,3376.9,0.00284212]
[1642086254669,1.4805298,3377.6,3376.9,0.00284212]
[1642086254968,0.00227369,3377.8,3376.9,0.00284212]
[1642086255368,4.70088405,3378.1,3376.9,0.00284212]
[1642086255369,0.7403,3377.4,3376.9,0.00284212]
[1642086255569,0.7403,3377.4,3376.7,0.00397896]
[1642086255870,0.7403,3377.4,3376.9,1.36947962]
[1642086256072,0.7402497,3377.3,3376.9,1.36947962]
[1642086256269,0.7402497,3377.3,3377.0,0.00227369]
[1642086258022,0.7402497,3377.3,3377.0,2.54871235]
[1642086258423,0.7402497,3377.3,3377.1,0.00170527]
[1642086262074,0.7402497,3377.3,3377.1,0.00836806]
[1642086262272,0.7402497,3377.3,3377.1,0.00170527]
[1642086262472,0.7402497,3377.3,3377.2,0.00113685]
[1642086262674,0.7402497,3377.3,3377.1,0.00170527]
[1642086264509,0.7402009,3377.4,3377.1,0.00170527]
[1642086266214,0.01799179,3377.3,3377.1,0.00170527]
[1642086266415,0.75823009,3377.3,3377.1,0.00170527]
[1642086266613,0.00113685,3377.6,3377.1,0.00170527]
[1642086267817,0.7402031,3377.4,3377.1,0.00170527]
[1642086272326,1.4804931,3377.4,3377.1,0.00170527]
[1642086272529,0.7402031,3377.4,3377.1,0.00170527]
[1642086272728,0.74125925,3377.6,3377.1,0.00170527]
[1642086272928,0.00113685,3377.6,3377.2,0.426]
[1642086273729,0.00113685,3377.6,3377.2,0.87006]
[1642086273929,0.00113685,3377.6,3377.3,0.3]
[1642086274132,0.00113685,3377.6,3377.4,1.14623736]
[1642086276781,0.00113685,3377.6,3377.5,6.79643866]
[1642086276979,0.00113685,3377.6,3377.5,7.09643866]
[1642086277780,0.00113685,3377.6,3377.5,2.84643866]
[1642086278182,0.32789698,3378.5,3377.6,4.65]
[1642086278481,0.00227369,3378.0,3377.6,4.65]
[1642086278683,0.7400781,3377.9,3377.6,4.65]
[1642086278984,0.00113684,3377.8,3377.5,2.84643866]
[1642086279826,0.00113684,3377.8,3377.7,2.54643866]
[1642086280021,0.00113684,3377.8,3377.7,2.84643866]
[1642086280628,0.00113684,3377.8,3377.7,6.04643866]
[1642086280827,0.00113684,3377.8,3377.7,2.84643866]
[1642086283279,0.00113684,3377.8,3377.7,2.54643866]
[1642086283870,0.00113684,3377.8,3377.7,2.04662286]
[1642086284471,0.7403016,3377.5,3377.1,2.64988039]
[1642086284676,1.4806032,3377.6,3377.1,0.30170527]
[1642086284677,0.02179691,3377.3,3377.1,0.30170527]
[1642086284875,0.74031,3377.4,3377.2,0.0022737]
[1642086285273,0.74031,3377.4,3376.7,0.00511581]
[1642086285875,0.7403246,3377.1,3376.9,1.26006959]
[1642086286275,0.7403246,3377.1,3377.0,0.00341054]
[1642086288726,0.7403246,3377.1,3376.3,6.07]
[1642086288727,6.75,3377.0,3376.3,6.07]
[1642086288923,0.01202148,3376.4,3376.2,2.27111267]
[1642086289125,0.02543578,3376.2,3375.6,3.71820759]
[1642086289325,1.34040732,3376.1,3375.6,3.71820759]
[1642086289521,2.08109732,3376.1,3376.0,0.00397897]
[1642086289724,6.75,3376.0,3375.6,3.71820759]
[1642086289932,6.75,3376.0,3375.4,3.78518779]
[1642086289933,0.7408424,3375.8,3375.4,3.78518779]
[1642086290227,0.77396324,3375.8,3375.5,0.00284212]
[1642086290424,6.65806,3375.7,3375.5,0.00284212]
[1642086290630,8.05581195,3375.7,3374.9,0.00625266]
[1642086290895,2.2225724,3375.6,3374.9,0.00625266]
[1642086291094,0.7408308,3375.4,3374.8,8.40817859]
[1642086291293,5.9172,3375.3,3374.8,8.40817859]
[1642086291495,6.6603337,3375.3,3374.8,8.30817859]
[1642086291692,0.00170527,3375.2,3374.8,8.30817859]
[1642086291892,1.14888605,3375.1,3374.8,8.30817859]
[1642086292093,1.1500229,3375.1,3374.8,4.589971]
[1642086292292,1.1500229,3375.1,3374.3,1.0120044]
[1642086292293,6.82351533,3375.0,3374.3,1.0120044]
[1642086292495,1.48225,3374.9,3374.3,1.0120044]
[1642086292693,0.74118,3374.7,3374.4,0.00284211]
[1642086292892,1.32009021,3374.2,3373.7,6.07]
[1642086293193,2.77226597,3374.7,3373.8,0.00341055]
[1642086293393,0.3036,3374.6,3373.8,0.00341055]
[1642086293593,0.3036,3374.6,3373.1,3.78518779]
[1642086293594,2.759613,3374.5,3373.1,3.78518779]
[1642086293802,0.01202262,3374.1,3373.1,3.78518779]
[1642086293992,0.01202262,3374.1,3373.2,0.00341054]
[1642086293993,0.44588832,3374.0,3373.2,0.00341054]
[1642086294192,0.74145,3373.8,3373.1,3.78518779]
[1642086294393,0.03300653,3373.6,3372.4,1.18212637]
[1642086294618,6.3432,3373.7,3372.4,1.18212637]
[1642086294619,1.61787938,3373.5,3372.4,1.18212637]
[1642086294821,0.74135,3373.1,3372.5,0.00397896]
[1642086295020,0.7412943,3373.2,3372.5,0.00397896]
[1642086295222,0.00113685,3373.4,3372.5,0.00397896]
[1642086295419,0.00113685,3373.4,3373.3,1.17147448]
[1642086295621,0.00113685,3373.4,3372.5,0.00397896]
[1642086296023,0.74131,3373.3,3372.5,0.00397896]
[1642086296224,0.02176469,3373.2,3372.4,1.45223038]
[1642086296425,0.00397896,3373.2,3372.4,1.45223038]
[1642086296724,0.00341054,3373.1,3372.5,1.15879255]
[1642086297126,0.00284212,3373.0,3372.5,1.15879255]
[1642086297327,0.74421162,3373.0,3372.5,0.65879255]
[1642086297529,1.4827547,3373.2,3371.6,20.5391]
[1642086297530,6.8,3372.8,3371.6,6.0397]
[1642086297730,2.3469149,3372.9,3371.1,3.75720835]
[1642086297731,0.02294799,3372.5,3371.1,3.75720835]
[1642086297929,0.01285655,3372.6,3371.7,0.00454739]
[1642086298128,0.00170527,3372.8,3371.7,0.00454739]
[1642086298372,0.01255355,3372.6,3371.7,0.00454739]
[1642086298571,0.00113685,3372.7,3371.7,0.00454739]
[1642086299071,0.00113685,3372.7,3371.7,7.80354739]
[1642086299473,0.00113685,3372.7,3371.8,2.29004667]
[1642086299773,0.00113685,3372.7,3371.9,0.00341054]
[1642086300777,0.00113685,3372.7,3372.5,1.25642479]
[1642086300978,0.00113685,3372.7,3372.6,0.3]
[1642086304627,3.685e-05,3372.7,3372.6,9.49151451]
[1642086304828,5.9172,3373.7,3372.7,6.81300152]
[1642086305026,5.9172,3373.7,3372.8,3.89151063]
[1642086305231,0.00341054,3373.3,3372.8,5.81795063]
[1642086305426,0.00341054,3373.3,3372.8,6.11795063]
[1642086305629,0.00284211,3373.2,3372.8,5.67335063]
[1642086306076,0.00227369,3373.1,3372.8,5.67335063]
[1642086306277,0.00227369,3373.1,3372.9,0.44458]
[1642086306478,5.9172,3373.7,3373.0,7.53967313]
[1642086306677,5.9172,3373.7,3373.6,1.45501731]
[1642086307079,5.9172,3373.7,3373.6,1.75501731]
[1642086307882,5.9172,3373.7,3373.6,0.3]
[1642086308082,5.9172,3373.7,3372.9,0.426]
[1642086308284,0.01933502,3373.6,3372.7,1.175]
[1642086308484,0.02445083,3373.6,3372.7,0.3]
[1642086308682,0.02445083,3373.6,3372.6,0.3]
[1642086308883,1.09130961,3372.8,3371.9,0.00341054]
[1642086309084,0.04341598,3372.7,3371.9,0.00341054]
[1642086309385,0.04341598,3372.7,3371.9,0.00454739]
[1642086309647,0.74139,3373.2,3371.9,0.00454739]
[1642086309838,1.24126414,3373.2,3371.9,0.00454739]
[1642086310038,0.00227369,3373.1,3372.2,1.31843751]
[1642086310242,0.00227369,3373.1,3372.2,1.61843751]
[1642086310443,0.00170527,3373.0,3372.3,0.0022737]
[1642086310839,0.00113684,3372.9,3372.3,0.0022737]
[1642086311142,0.00397896,3373.4,3372.3,0.0022737]
[1642086311340,0.00397896,3373.4,3372.9,1.18885992]
[1642086311543,1.31427261,3373.5,3372.9,1.48885992]
[1642086311544,0.00341054,3373.3,3372.9,1.48885992]
[1642086311740,0.00341054,3373.3,3372.9,0.3]
[1642086311943,0.00284211,3373.2,3372.3,3.7863737]
[1642086312342,0.00227369,3373.1,3372.4,0.00170527]
[1642086312742,0.00170527,3373.0,3372.4,0.00170527]
[1642086313142,0.00113684,3372.9,3372.4,0.00170527]
[1642086313572,0.49987414,3373.1,3372.5,1.47698791]
[1642086313974,0.00170527,3373.0,3372.6,0.3]
[1642086314369,0.49987414,3373.1,3372.6,0.3]
[1642086314370,0.40157941,3373.1,3372.6,7.1]
[1642086314568,5.9172,3373.7,3372.8,0.00366026]
[1642086314774,5.9172,3373.7,3372.7,0.00170527]
[1642086314974,0.00341054,3373.6,3372.7,0.00170527]
[1642086315375,0.00284211,3373.5,3372.7,0.00170527]
[1642086315877,0.00227369,3373.4,3372.7,0.00170527]
[1642086316277,0.00170527,3373.3,3372.7,0.00170527]
[1642086316776,5.9172,3373.7,3372.7,0.00170527]
[1642086316777,0.00113684,3373.2,3372.7,0.00170527]
[1642086317227,0.00113684,3373.2,3372.8,0.74105]
[1642086317627,0.00113684,3373.2,3372.9,0.3]
[1642086318130,0.00113684,3373.2,3373.0,1.4760176]
[1642086318327,0.00113684,3373.2,3373.0,1.3760176]
[1642086318928,0.00113684,3373.2,3373.1,0.426]
[1642086319128,0.00113684,3373.2,3373.1,7.226]
[1642086319331,0.00113684,3373.2,3373.1,8.34634596]
[1642086319532,3.684e-05,3373.2,3373.1,8.64634596]
[1642086319734,0.49998768,3375.3,3373.2,6.8]
[1642086319933,0.33044208,3376.0,3373.2,6.8]
[1642086319934,0.7408,3375.8,3373.9,0.75280688]
[1642086320131,0.7408,3375.8,3374.0,2.89732346]
[1642086320331,1.24078768,3375.8,3374.0,2.89732346]
[1642086320532,1.15114778,3375.4,3374.4,1.23083347]
[1642086320782,1.15114778,3375.4,3373.9,0.3]
[1642086320968,0.49998768,3374.7,3373.9,0.3]
[1642086321168,0.49998768,3374.7,3373.8,1.4253]
[1642086321370,0.00795793,3374.6,3373.8,1.4253]
[1642086321776,0.00738951,3374.5,3374.2,1.54249711]
[1642086322175,0.00682109,3374.4,3374.2,1.84249711]
[1642086322575,0.00625266,3374.3,3374.2,1.84249711]
[1642086323774,1.25332375,3375.2,3374.2,1.84249711]
[1642086323974,1.20957641,3375.2,3374.2,1.84249711]
[1642086324173,0.00454739,3375.1,3374.2,1.84249711]
[1642086324626,0.00397897,3375.0,3374.2,1.84249711]
[1642086324826,0.49998768,3374.9,3374.2,1.84249711]
[1642086325028,0.50339822,3374.9,3374.2,1.84249711]
[1642086325226,0.00284212,3374.8,3374.2,1.84249711]
[1642086325625,0.49998768,3374.9,3374.2,1.84249711]
[1642086325626,0.0022737,3374.7,3374.2,1.84249711]
[1642086326029,0.00170527,3374.6,3374.2,0.3]
[1642086326227,0.00170527,3374.6,3373.8,1.1253]
[1642086326428,0.03243175,3374.5,3373.7,0.13819997]
[1642086326631,0.03901104,3374.4,3373.9,0.00227369]
[1642086326832,0.03901104,3374.4,3373.8,0.00284212]
[1642086327031,0.74112,3374.9,3373.8,0.00284212]
[1642086327032,0.77627629,3374.8,3373.8,0.00284212]
[1642086327234,0.74108,3374.4,3373.9,1.20147038]
[1642086327432,0.49998768,3374.1,3373.9,1.20147038]
[1642086327633,0.49998768,3374.1,3374.0,0.00170527]
[1642086329183,1.0022737,3374.7,3374.0,0.00170527]